fUSD/lending_fUSD_20260221
["ID","MTS","AMOUNT","RATE_DAILY","PERIOD"]
[406279159,1771684813113,-453.0,0.00048886,120]
[406279160,1771684813139,-3336.52331153,0.00048888,120]
[406279161,1771684813164,-504884.28337902,0.00048889,120]
[406279162,1771684813189,-1411.00336891,0.000489,120]
[406279163,1771684813214,-1274.07742862,0.000489,120]
[406279164,1771684813239,-276.6782969,0.000489,120]
[406279165,1771684813264,-220.0,0.0004899,30]
[406279166,1771684813289,-222.0,0.0004899,30]
[406279167,1771684813315,-220.0,0.0004899,30]
[406279168,1771684813340,-2499.6224018,0.00048995,120]
[406279169,1771684813365,-1259.9472939,0.00049,120]
[406279170,1771684813392,-800.36779003,0.00049,30]
[406279171,1771684813419,-240.89232933,0.00049,30]
[406279172,1771684813444,-293.33854943,0.00049,30]
[406279173,1771684813469,-268.70412029,0.00049,120]
[406279174,1771684813495,-2125.49221793,0.00049,120]
[406279175,1771684813525,-600.38456932,0.00049,120]
[406279176,1771684813552,-150.0,0.00049,120]
[406279177,1771684813580,-1000.0,0.00049,120]
[406279178,1771684813608,-3100.0,0.00049,120]
[406279179,1771684813636,-1000.0,0.00049,60]
[406279180,1771684813662,-10000.0,0.00049,30]
[406279181,1771684813685,-257.60677739,0.00049,90]
[406279182,1771684813891,-1854.0,0.00049,120]
[406279183,1771684813923,-2338.20503555,0.00049,120]
[406279184,1771684813947,-1000.0,0.00049,120]
[406279185,1771684813972,-500.0,0.00049004,60]
[406279186,1771684813998,-500.0,0.00049004,60]
[406279187,1771684814024,-87019.0,0.0004905,60]
[406279188,1771684814050,-3100.0,0.00049129,45]
[406279189,1771684814075,-153.0,0.000492,120]
[406279190,1771684814102,-6068.35085239,0.000492,30]
[406279191,1771684814127,-1484.47839171,0.00049315,120]
[406279192,1771684814153,-3900.0,0.00049315,120]
[406279193,1771684814178,-1500.0,0.00049315,30]
[406279194,1771684814203,-2749.58464198,0.00049384,120]
[406279195,1771684814230,-153.0,0.000494,120]
[406279196,1771684814255,-417.37299672,0.00049401,120]
[406279197,1771684814281,-170.29,0.00049433,60]
[406279198,1771684814306,-200.0,0.00049483,120]
[406279199,1771684814332,-2912.79787741,0.000495,120]
[406279200,1771684814357,-273.23167327,0.000495,120]
[406279201,1771684814383,-1421.06,0.00049613,120]
[406279202,1771684814414,-183.74,0.00049613,120]
[406279203,1771684814442,-999.0,0.00049616,120]
[406279204,1771684814468,-3000.0,0.0004963,78]
[406279205,1771684814492,-21523.1210445,0.000497,120]
[406279206,1771684814520,-3055.09404665,0.00049772,120]
[406279207,1771684814544,-769.0,0.00049784,120]
[406279208,1771684814569,-1539.0,0.00049784,120]
[406279209,1771684814596,-60801.53969262,0.000498,30]
[406279210,1771684814621,-177.22145727,0.000498,120]
[406279211,1771684814647,-258.46979101,0.000498,120]
[406279212,1771684814672,-197.42,0.000498,30]
[406279213,1771684814696,-2000.0,0.0004985,81]
[406279214,1771684814723,-4000.0,0.0004986,81]
[406279215,1771684814749,-214.09840753,0.00049872,120]
[406279216,1771684814773,-211.35811196,0.00049872,120]
[406279217,1771684814799,-1333.6511331,0.000499,120]
[406279218,1771684814827,-10291.01445093,0.000499,30]
[406279219,1771684814851,-800.0,0.000499,120]
[406279220,1771684814876,-4639.38154083,0.0004999,120]
[406279221,1771684814902,-3165.40222837,0.0004999,120]
[406279222,1771684814927,-233.67372098,0.00049999,120]
[406279223,1771684814954,-249.87794917,0.00049999,120]
[406279224,1771684814979,-500.0,0.00049999,120]
[406279225,1771684815004,-257.67006821,0.00049999,120]
[406279226,1771684815029,-500.0,0.00049999,120]
[406279227,1771684815060,-500.0,0.00049999,120]
[406279228,1771684815091,-227.55611716,0.00049999,120]
[406279229,1771684815122,-500.0,0.00049999,120]
[406279230,1771684815153,-500.0,0.00049999,120]
[406279231,1771684815182,-419.81697625,0.00049999,120]
[406279232,1771684815215,-300.0,0.00049999,120]
[406279233,1771684815242,-500.0,0.00049999,120]
[406279234,1771684815267,-500.0,0.00049999,120]
[406279235,1771684815293,-500.0,0.00049999,120]
[406279236,1771684815319,-500.0,0.00049999,120]
[406279237,1771684815344,-500.0,0.00049999,120]
[406279238,1771684815369,-500.0,0.00049999,120]
[406279239,1771684815395,-500.0,0.00049999,120]
[406279240,1771684815420,-500.0,0.00049999,120]
[406279241,1771684815446,-500.0,0.00049999,120]
[406279242,1771684815472,-413.07145965,0.00049999,120]
[406279243,1771684815498,-500.0,0.00049999,120]
[406279244,1771684815529,-500.0,0.00049999,120]
[406279245,1771684815558,-500.0,0.00049999,120]
[406279246,1771684815586,-50000.0,0.0005,90]
[406279247,1771684815611,-136725.23649702,0.0005,120]
[406279248,1771684815636,-13000.0,0.0005,120]
[406279249,1771684815661,-32968.0,0.0005,60]
[406279250,1771684815686,-747.3161434,0.0005,120]
[406279251,1771684815719,-173.09055846,0.0005,120]
[406279252,1771684815747,-2124.61907276,0.0005,30]
[406279253,1771684815772,-1648.97745726,0.0005,120]
[406279254,1771684815799,-1791.6183772,0.0005,120]
[406279255,1771684815826,-2252.73565598,0.0005,30]
[406279256,1771684815854,-2051.87335669,0.0005,120]
[406279257,1771684815879,-1863.40059821,0.0005,120]
[406279258,1771684815903,-1699.54161321,0.0005,30]
[406279259,1771684815931,-1078.94699465,0.0005,120]
[406279260,1771684815955,-1386.24603368,0.0005,120]
[406279261,1771684815980,-1100.5311758,0.0005,120]
[406279262,1771684816005,-687.18363165,0.0005,120]
[406279263,1771684816033,-225.9916945,0.0005,120]
[406279264,1771684816058,-2054.92608684,0.0005,120]
[406279265,1771684816083,-500.0,0.0005,30]
[406279266,1771684816108,-1164.03738225,0.0005,120]
[406279267,1771684816138,-1927.00505744,0.0005,120]
[406279268,1771684816165,-182.27861175,0.0005,120]
[406279269,1771684816190,-200.0,0.0005,120]
[406279270,1771684816217,-160.68931328,0.0005,120]
[406279271,1771684816245,-150.0,0.0005,120]
[406279272,1771684816273,-500.0,0.0005,120]
[406279273,1771684816299,-9520.44165277,0.0005,120]
[406279274,1771684816325,-1756.86131092,0.0005,120]
[406279275,1771684816351,-4009.8,0.0005,120]
[406279276,1771684816380,-1000000.0,0.0005,120]
[406279277,1771684816410,-1000000.0,0.0005,120]
[406279278,1771684816439,-1000000.0,0.0005,120]
[406279279,1771684816468,-1000000.0,0.0005,60]
[406279280,1771684816496,-1000000.0,0.0005,57]
[406279281,1771684816527,-477.36605212,0.0005,120]
[406279282,1771684816559,-500.0,0.0005,90]
[406279283,1771684816590,-23715.0,0.0005,120]
[406279284,1771684816621,-10000.0,0.0005,30]
[406279285,1771684816650,-513.45466962,0.0005,120]
[406279286,1771684816683,-310000.0,0.0005,120]
[406279287,1771684816888,-639.978035,0.0005,120]
[406279288,1771684816918,-6576.08362085,0.0005,120]
[406279289,1771684816949,-6732.3564401,0.0005,60]
[406279290,1771684816979,-4999.999999,0.0005,45]
[406279291,1771684817008,-4127.97715022,0.0005,90]
[406279292,1771684817038,-1000.0,0.0005,90]
[406279293,1771684817067,-660.0,0.0005,90]
[406279294,1771684817095,-150.0,0.0005,60]
[406279295,1771684817127,-17075.18456925,0.0005,120]
[406279296,1771684829138,-200.0,0.00043068,120]
[406279297,1771684829179,-200.0,0.00043068,120]
[406279298,1771684829218,-201.79687633,0.000442,120]
[406279299,1771684829256,-168.78234027,0.000442,120]
[406279300,1771684829298,-196.03907193,0.000442,120]
[406279301,1771684829336,-457.87,0.00044383,120]
[406279302,1771684829376,-747.0,0.00044383,30]
[406279303,1771684829414,-150.0,0.000444,120]
[406279304,1771684829451,-150.0,0.000444,120]
[406279305,1771684829487,-150.0,0.000444,120]
[406279306,1771684829530,-113042.2660132,0.00045024,54]
[406279307,1771684829586,-200.0,0.00046137,120]
[406279308,1771684829626,-200.0,0.00046137,120]
[406279309,1771684829665,-200.0,0.00046137,120]
[406279310,1771684829706,-200.0,0.00046137,120]
[406279311,1771684829744,-749.0,0.00046549,30]
[406279312,1771684829781,-300.21224,0.00047499,120]
[406279313,1771684829818,-1000.0,0.000499,120]
[406279314,1771684829858,-157924.81543075,0.0005,120]
[406279315,1771684829894,-500.449999,0.0005,120]
[406279316,1771684829929,-36088.934229,0.0005,120]
[406279317,1771684829965,-5521.75189613,0.0005,30]
[406279318,1771684830001,-3157.88,0.0005,120]
[406279319,1771684830037,-4556.0,0.0005,120]
[406279320,1771684830076,-238.8245461,0.0005,120]
[406279321,1771684830114,-1819.78557446,0.0005,45]
[406279322,1771684830151,-542.99151652,0.0005,120]
[406279323,1771684830188,-169.83856394,0.0005,30]
[406279324,1771684830225,-163.41055508,0.0005,120]
[406279325,1771684830262,-150.0,0.0005,40]
[406279326,1771684830300,-600.0,0.0005,120]
[406279327,1771684830339,-153.0,0.0005,120]
[406279328,1771684830376,-200.0398298,0.0005,120]
[406279329,1771684830415,-9092.0,0.0005,30]
[406279330,1771684830451,-484.91901155,0.0005,120]
[406279331,1771684830487,-1688.16880418,0.0005,120]
[406279332,1771684830524,-699.75982016,0.0005,120]
[406279333,1771684830561,-600.0,0.0005,120]
[406279334,1771684830596,-180.0,0.0005,120]
[406279335,1771684830629,-300.0,0.0005,120]
[406279336,1771684830663,-840.0,0.0005,120]
[406279337,1771684830697,-500.0,0.000501,60]
[406279338,1771684830736,-500.0,0.000501,60]
[406279339,1771684830776,-318.49187944,0.0005011,120]
[406279340,1771684830810,-3436.98080248,0.0005016,120]
[406279341,1771684830844,-6867.71,0.00050195,120]
[406279342,1771684830880,-153.0,0.000502,120]
[406279343,1771684830915,-206.30397033,0.00050238,120]
[406279344,1771684830950,-212.41369365,0.00050238,120]
[406279345,1771684830986,-214.18453032,0.00050238,120]
[406279346,1771684831021,-216.6460612,0.00050238,120]
[406279347,1771684831056,-209.55926181,0.00050238,120]
[406279348,1771684831091,-209.55926181,0.00050238,120]
[406279349,1771684831126,-999.999999,0.000505,120]
[406279350,1771684831161,-3927.97805998,0.00050548,120]
[406279351,1771684831195,-1133.21943975,0.000506,120]
[406279352,1771684831230,-153.0,0.000508,120]
[406279353,1771684831266,-202.823194,0.00050825,120]
[406279354,1771684831492,-2500.0,0.0005086,81]
[406279355,1771684831530,-2404.43717345,0.0005086,120]
[406279356,1771684831567,-517.47,0.0005088,120]
[406279357,1771684831602,-3228.65181617,0.000509,120]
[406279358,1771684831635,-339.53721564,0.000509,60]
[406279359,1771684831668,-163.32,0.000509,30]
[406279360,1771684831701,-3084.22,0.000509,30]
[406279361,1771684831733,-176.12,0.000509,30]
[406279362,1771684831767,-153.0,0.000509,120]
[406279363,1771684831800,-4582.64106997,0.00050936,120]
[406279364,1771684831835,-1394.67261221,0.00050949,89]
[406279365,1771684831871,-1048.16039223,0.00050986,120]
[406279366,1771684831904,-10090.31161645,0.00051,30]
[406279367,1771684831937,-500.0,0.00051,120]
[406279368,1771684831972,-537.73218957,0.00051,120]
[406279369,1771684832008,-1529.0,0.00051,120]
[406279370,1771684832044,-1069.6398164,0.00051,120]
[406279371,1771684832079,-150.0,0.00051,120]
[406279372,1771684832115,-10067.10680615,0.00051,120]
[406279373,1771684832150,-512.0,0.00051,60]
[406279374,1771684832184,-150.0,0.00051,90]
[406279375,1771684832219,-255.134379,0.00051,120]
[406279376,1771684832254,-1854.0,0.00051,120]
[406279377,1771684832290,-242.5,0.00051,40]
[406279378,1771684832324,-2757.0,0.00051,120]
[406279379,1771684832358,-2931.76731597,0.00051,120]
[406279380,1771684832391,-1890.21244355,0.00051,120]
[406279381,1771684832424,-283.44,0.00051,30]
[406279382,1771684832459,-1000.0,0.00051018,120]
[406279383,1771684832494,-1000.0,0.00051022,120]
[406279384,1771684832529,-500.0,0.00051196,60]
[406279385,1771684832564,-267.15854464,0.00051196,60]
[406279386,1771684832599,-2920.23069501,0.000512,60]
[406279387,1771684832633,-1009.06128595,0.00051234,120]
[406279388,1771684832666,-5499.16928397,0.00051324,120]
[406279389,1771684832700,-1000.0,0.000514,120]
[406279390,1771684832734,-153.0,0.000516,120]
[406279391,1771684832769,-153.0,0.000516,120]
[406279392,1771684832803,-2000.0,0.0005163,78]
[406279393,1771684832837,-197.42,0.000517,30]
[406279394,1771684832871,-6873.96160496,0.00051712,120]
[406279395,1771684832904,-429.60325456,0.0005176,120]
[406279396,1771684832938,-307157.35563425,0.000518,120]
[406279397,1771684832972,-8295.87551459,0.00051875,60]
[406279398,1771684833006,-500.0,0.000519,120]
[406279399,1771684833040,-38819.4199247,0.000519,30]
[406279400,1771684833073,-2660.01,0.000519,120]
[406279401,1771684833107,-200.0,0.000519,60]
[406279402,1771684833140,-1803.0,0.00051937,120]
[406279403,1771684833175,-1120.0,0.0005195,120]
[406279404,1771684833210,-2166.0,0.0005196,81]
[406279405,1771684833243,-1161.0,0.0005198,110]
[406279406,1771684833279,-10000.0,0.0005199,120]
[406279407,1771684833319,-1000000.0,0.00052,55]
[406279408,1771684833360,-1000000.0,0.00052,51]
[406279409,1771684833397,-500.0,0.00052,120]
[406279410,1771684833433,-932.0,0.00052,120]
[406279411,1771684833469,-99999.0,0.00052,120]
[406279412,1771684833505,-23435.86425732,0.00052,60]
[406279413,1771684833547,-1500.0,0.00052,120]
[406279414,1771684833587,-564.12247859,0.00052,120]
[406279415,1771684833621,-289.34861133,0.00052,120]
[406279416,1771684833655,-3021.3161379,0.00052,99]
[406279417,1771684833694,-2046.17648895,0.00052,120]
[406279418,1771684833730,-314.99679095,0.00052,120]
[406279419,1771684833767,-150.0,0.00052,120]
[406279420,1771684833803,-500.0,0.00052,120]
[406279421,1771684833838,-10000.0,0.00052,120]
[406279422,1771684833875,-1600.0,0.00052,120]
[406279423,1771684833909,-1000.0,0.00052,120]
[406279424,1771684833948,-1000000.0,0.00052,120]
[406279425,1771684833988,-294754.0,0.00052,120]
[406279426,1771684834024,-150.0,0.00052,120]
[406279427,1771684834061,-150.0,0.00052,90]
[406279428,1771684834097,-10000.0,0.00052,30]
[406279429,1771684834133,-24014.99764736,0.00052,30]
[406279430,1771684834170,-10278.0,0.00052,120]
[406279431,1771684834207,-530.0,0.00052,90]
[406279432,1771684834243,-91196.53387892,0.00052,120]
[406279433,1771684834281,-1707.0,0.00052,120]
[406279434,1771684834319,-1871.01293346,0.00052,120]
[406279435,1771684834359,-519.0,0.00052,34]
[406279436,1771684834395,-143685.28274523,0.00052,30]
[406279437,1771684834435,-1120.08164442,0.00052054,120]
[406279438,1771684834472,-1516.2,0.00052055,120]
[406279439,1771684834509,-10000.0,0.00052055,120]
[406279440,1771684834549,-300.88714038,0.00052055,30]
[406279441,1771684834585,-7903.1242972,0.00052055,120]
[406279442,1771684834620,-1421.06,0.00052093,120]
[406279443,1771684834654,-9165.28213994,0.000521,120]
[406279444,1771684834690,-682.04082324,0.000522,120]
[406279445,1771684834726,-1039.0,0.00052267,120]
[406279446,1771684834765,-500.0,0.00052292,60]
[406279447,1771684834802,-153.0,0.000523,120]
[406279448,1771684834839,-3084.22,0.000523,30]
[406279449,1771684834878,-153.0,0.000523,120]
[406279450,1771684834915,-183.35442833,0.00052326,30]
[406279451,1771684834951,-13956.52997707,0.00052345,60]
[406279452,1771684834987,-1000.0,0.000524,120]
[406279453,1771684835022,-5000.0,0.000524,30]
[406279454,1771684835058,-4403168.82051785,0.000524,30]
[406279455,1771684841957,-246.16170571,0.000442,120]
[406279456,1771684841996,-151.0,0.00045024,120]
[406279457,1771684842047,-735.0,0.00046888,30]
[406279458,1771684842084,-1119.0,0.0004985,120]
[406279459,1771684842120,-1594.0,0.0004985,120]
[406279460,1771684842160,-1342472.53105213,0.000524,30]
[406279461,1771684842198,-154.36501414,0.000524,30]
[406279462,1771684842235,-612.90153741,0.000524,30]
[406279463,1771684842272,-2000.3841371,0.0005243,81]
[406279464,1771684842309,-2500.0,0.0005244,78]
[406279465,1771684842346,-13747.92320991,0.00052489,120]
[406279466,1771684842381,-269.42301428,0.0005249,120]
[406279467,1771684842417,-3326.43170954,0.000525,120]
[406279468,1771684842453,-5859.14125864,0.000525,120]
[406279469,1771684842490,-1022.2155362,0.000525,120]
[406279470,1771684842524,-6082.0,0.000525,120]
[406279471,1771684842561,-1166.0948137,0.000525,120]
[406279472,1771684842596,-779.11788195,0.000525,120]
[406279473,1771684842630,-50000.0,0.000525,30]
[406279474,1771684842666,-350000.0,0.000525,120]
[406279475,1771684842701,-438.0,0.000525,120]
[406279476,1771684842735,-5000.0,0.00052594,42]
[406279477,1771684842769,-5000.0,0.00052594,41]
[406279478,1771684842804,-5000.0,0.00052594,37]
[406279479,1771684842839,-20000.0,0.00052599,120]
[406279480,1771684842873,-50000.0,0.0005268,60]
[406279481,1771684842917,-212.32,0.00052699,120]
[406279482,1771684842952,-1250.0,0.000527,120]
[406279483,1771684842987,-1731.42241218,0.00052749,91]
[406279484,1771684843024,-1728.89,0.000528,120]
[406279485,1771684843060,-50000.0,0.000528,120]
[406279486,1771684843096,-10523.66,0.000528,120]
[406279487,1771684843132,-1406.79,0.000528,120]
[406279488,1771684843169,-2048.4410514,0.000528,30]
[406279489,1771684843206,-3489.21917379,0.00052875,60]
[406279490,1771684843243,-27495.84641983,0.00052877,120]
[406279491,1771684843280,-1921.7706664,0.0005288,120]
[406279492,1771684843317,-925.05609669,0.000529,120]
[406279493,1771684843355,-157290.89667616,0.000529,120]
[406279494,1771684843391,-200.0,0.000529,60]
[406279495,1771684843428,-517.47,0.00052919,120]
[406279496,1771684843477,-267.10601886,0.00053,120]
[406279497,1771684843517,-1839.06885448,0.00053,120]
[406279498,1771684843554,-150.0,0.00053,120]
[406279499,1771684843592,-15130.336539,0.00053,120]
[406279500,1771684843629,-26144.97723044,0.00053,120]
[406279501,1771684843665,-10000.0,0.00053,120]
[406279502,1771684843701,-1000.0,0.00053,120]
[406279503,1771684843736,-210.96,0.00053,90]
[406279504,1771684843770,-2002.35633126,0.00053,120]
[406279505,1771684843805,-500.0,0.00053,120]
[406279506,1771684843840,-500.0,0.00053,120]
[406279507,1771684843874,-2215.23107753,0.00053,30]
[406279508,1771684843910,-4000.71264519,0.00053,120]
[406279509,1771684843948,-1675.61,0.00053,120]
[406279510,1771684843985,-3635.46220935,0.00053,120]
[406279511,1771684844022,-1854.0,0.00053,120]
[406279512,1771684844057,-607.19147931,0.00053,60]
[406279513,1771684844094,-6039.33871315,0.00053,100]
[406279514,1771684844133,-2052.6268,0.00053,100]
[406279515,1771684844172,-1557.02575,0.00053,100]
[406279516,1771684844211,-153.0,0.000531,120]
[406279517,1771684844250,-153.0,0.000531,120]
[406279518,1771684844290,-3034.0,0.000533,120]
[406279519,1771684844329,-628.88540304,0.00053388,60]
[406279520,1771684844367,-3458.14651373,0.000534,120]
[406279521,1771684844406,-2031745.628255,0.0005349,30]
[406279522,1771684844444,-223491.84281445,0.00053491,120]
[406279523,1771684844483,-1000.0,0.00053499,120]
[406279524,1771684844524,-3756482.71413364,0.000535,120]
[406279525,1771684844563,-3215.85399946,0.000535,120]
[406279526,1771684844601,-350000.0,0.000535,120]
[406279527,1771684844638,-5000.0,0.0005355,120]
[406279528,1771684844674,-2000.0,0.0005362,81]
[406279529,1771684844712,-50309.737894,0.0005368,90]
[406279530,1771684844749,-519.41940161,0.00053698,120]
[406279531,1771684844784,-216636.0,0.000537,120]
[406279532,1771684844820,-859.08,0.000538,120]
[406279533,1771684844858,-859.08,0.000538,120]
[406279534,1771684844895,-153.0,0.000538,120]
[406279535,1771684844932,-11816.99907951,0.00053876,120]
[406279536,1771684844970,-2885.1205645,0.000539,120]
[406279537,1771684845005,-8508.88090079,0.000539,120]
[406279538,1771684845043,-500.0,0.000539,120]
[406279539,1771684845079,-153.0,0.000539,120]
[406279540,1771684845114,-4541.1541359,0.00053995,120]
[406279541,1771684845151,-1346.6814919,0.00053995,120]
[406279542,1771684845187,-150.0,0.00054,120]
[406279543,1771684845223,-677.01277427,0.00054,120]
[406279544,1771684845259,-258.40385771,0.00054,120]
[406279545,1771684845295,-300.0,0.00054,120]
[406279546,1771684845331,-300.0,0.00054,120]
[406279547,1771684845369,-13432.51807439,0.00054,120]
[406279548,1771684845406,-10000.0,0.00054,120]
[406279549,1771684845442,-2916.05292416,0.00054,120]
[406279550,1771684845627,-10372.37688509,0.00054,120]
[406279551,1771684845664,-15507.27431066,0.00054,120]
[406279552,1771684845703,-313.0,0.00054,120]
[406279553,1771684845739,-6556.0,0.00054,120]
[406279554,1771684845775,-48366.65957046,0.00054,120]
[406279555,1771684856246,-184.12604253,0.000442,120]
[406279556,1771684856292,-183.10282583,0.000442,120]
[406279557,1771684856332,-155.24383259,0.00044383,120]
[406279558,1771684856372,-746.0,0.00044544,30]
[406279559,1771684856413,-2000.0,0.00045015,120]
[406279560,1771684856464,-2000.0,0.00045215,120]
[406279561,1771684856502,-2000.0,0.00045415,120]
[406279562,1771684856541,-2000.0,0.00045615,120]
[406279563,1771684856579,-2000.0,0.00045815,120]
[406279564,1771684856618,-2000.0,0.00046015,120]
[406279565,1771684856657,-252.054451,0.00050815,120]
[406279566,1771684856693,-55038.74828116,0.00051,120]
[406279567,1771684856728,-673.0,0.0005225,120]
[406279568,1771684856764,-1111.0,0.0005225,120]
[406279569,1771684856800,-1140.0,0.0005225,120]
[406279570,1771684856838,-949.13698873,0.0005225,120]
[406279571,1771684856873,-366548.34181126,0.00054,120]
[406279572,1771684856912,-500.0,0.00054,120]
[406279573,1771684856947,-1225.40432037,0.00054,120]
[406279574,1771684856982,-158.29362936,0.00054,120]
[406279575,1771684857017,-9662.53169761,0.00054,120]
[406279576,1771684857052,-2785.3774,0.00054,120]
[406279577,1771684857087,-3664.70914496,0.00054,120]
[406279578,1771684857123,-2362.76555444,0.00054,120]
[406279579,1771684857159,-828.0,0.00054,120]
[406279580,1771684857198,-1000.0,0.00054,120]
[406279581,1771684857236,-151.0,0.00054,30]
[406279582,1771684857272,-7903.1242972,0.00054055,120]
[406279583,1771684857309,-20184.74,0.00054093,120]
[406279584,1771684857345,-3054.82543039,0.000541,120]
[406279585,1771684857380,-55258.86586583,0.00054288,120]
[406279586,1771684857417,-1735.0,0.00054347,93]
[406279587,1771684857452,-5698.9858884,0.000544,30]
[406279588,1771684857488,-554.88780562,0.000545,120]
[406279589,1771684857526,-10000.0,0.000545,120]
[406279590,1771684857565,-2000.0,0.000545,90]
[406279591,1771684857602,-389.93194662,0.000545,120]
[406279592,1771684857640,-9000.0,0.000545,120]
[406279593,1771684857677,-4024.89444018,0.000545,120]
[406279594,1771684857714,-153.0,0.000545,120]
[406279595,1771684857751,-27000.0,0.00054519,120]
[406279596,1771684857788,-2000.0,0.000546,90]
[406279597,1771684857828,-153.0,0.000546,120]
[406279598,1771684857863,-235.79236098,0.00054645,120]
[406279599,1771684857897,-579.02254573,0.00054646,120]
[406279600,1771684857944,-13537.11643983,0.0005465,120]
[406279601,1771684857980,-1738.1746751,0.00054652,120]
[406279602,1771684858016,-236.71241999,0.00054655,120]
[406279603,1771684858052,-220.52561579,0.00054656,120]
[406279604,1771684858088,-4939.16938755,0.00054656,120]
[406279605,1771684858126,-171960.48764797,0.00054663,120]
[406279606,1771684858163,-1292.43632755,0.00054664,120]
[406279607,1771684858199,-37176.63352933,0.00054665,120]
[406279608,1771684858234,-1112.90115348,0.00054667,120]
[406279609,1771684858272,-1180.87099273,0.00054668,120]
[406279610,1771684858310,-107033.450269,0.00054668,120]
[406279611,1771684858348,-204.44789361,0.00054671,120]
[406279612,1771684858388,-1646.38979585,0.00054674,120]
[406279613,1771684858427,-579.19574419,0.00054675,120]
[406279614,1771684858467,-63794.25191948,0.00054676,120]
[406279615,1771684858509,-167958.90439375,0.00054678,120]
[406279616,1771684858554,-1192.78813075,0.00054679,120]
[406279617,1771684858594,-1932.7624347,0.00054681,120]
[406279618,1771684858636,-7195.30789573,0.00054682,120]
[406279619,1771684858676,-7532.09025876,0.00054682,120]
[406279620,1771684858714,-251.63697999,0.00054683,120]
[406279621,1771684858754,-4939.281778,0.00054686,120]
[406279622,1771684858794,-2053.79525783,0.00054687,120]
[406279623,1771684858832,-2225.80230699,0.00054689,120]
[406279624,1771684858870,-37176.63352972,0.0005469,120]
[406279625,1771684858907,-149999.999999,0.0005469,60]
[406279626,1771684858943,-1680.88511061,0.00054691,120]
[406279627,1771684858979,-14467.71499533,0.00054691,120]
[406279628,1771684859016,-159.15022555,0.00054692,120]
[406279629,1771684859053,-1353.69157701,0.00054692,120]
[406279630,1771684859100,-32244.35999149,0.00054696,120]
[406279631,1771684859138,-7468.93730252,0.00054697,120]
[406279632,1771684859176,-15794.94831892,0.00054699,120]
[406279633,1771684859213,-2874.34867549,0.000547,120]
[406279634,1771684859251,-1580.98,0.000547,90]
[406279635,1771684859291,-50000.0,0.000547,120]
[406279636,1771684859334,-2000.0,0.0005472,120]
[406279637,1771684859373,-10014.0092381,0.0005477,120]
[406279638,1771684859413,-3881.03491601,0.0005478,120]
[406279639,1771684859665,-17864.70307779,0.0005479,120]
[406279640,1771684859704,-1000.0,0.00054794,120]
[406279641,1771684859740,-418.93231494,0.00054795,30]
[406279642,1771684859777,-500.0,0.00054795,30]
[406279643,1771684859812,-518.5,0.00054795,30]
[406279644,1771684859846,-264.04644025,0.00054795,30]
[406279645,1771684859883,-537.6845,0.00054795,30]
[406279646,1771684859923,-500.0,0.00054795,30]
[406279647,1771684859960,-557.5788265,0.00054795,30]
[406279648,1771684859996,-500.0,0.00054795,30]
[406279649,1771684860036,-578.20924308,0.00054795,30]
[406279650,1771684860077,-500.0,0.00054795,30]
[406279651,1771684860123,-599.60298507,0.00054795,30]
[406279652,1771684860162,-500.0,0.00054795,30]
[406279653,1771684860201,-621.78829552,0.00054795,30]
[406279654,1771684860241,-500.0,0.00054795,30]
[406279655,1771684860285,-644.79446246,0.00054795,30]
[406279656,1771684860327,-500.0,0.00054795,30]
[406279657,1771684860368,-668.65185757,0.00054795,30]
[406279658,1771684860408,-500.0,0.00054795,30]